fUST/lending_fUST_20250729
["ID","MTS","AMOUNT","RATE_DAILY","PERIOD"]
[375730338,1753725059823,-1930.92,0.00022739,2]
[375730340,1753725059833,-2539.24,0.00022739,2]
[375730342,1753725059842,-536.55,0.00022739,2]
[375730344,1753725059851,-559.65,0.00022739,2]
[375730346,1753725059862,-460.0,0.00022739,2]
[375730348,1753725059871,-1363.78,0.00022739,2]
[375730350,1753725059880,-3257.5,0.00022739,2]
[375730352,1753725059889,-3044.26,0.00022739,2]
[375730354,1753725059898,-504.44,0.00022739,2]
[375730356,1753725059907,-1962.59,0.00022739,2]
[375730358,1753725059917,-914.27,0.00022739,2]
[375730360,1753725059931,-460.0,0.00022739,2]
[375730362,1753725059941,-460.0,0.00022739,2]
[375730364,1753725059950,-460.0,0.00022739,2]
[375730365,1753725059959,-154.887059,0.00022739,7]
[375730367,1753725059969,-460.09,0.00022739,2]
[375730369,1753725059979,-659.1,0.00022739,2]
[375730371,1753725059988,-3770.7,0.00022739,2]
[375730373,1753725059998,-675.7,0.00022739,2]
[375730375,1753725060007,-460.0,0.00022739,2]
[375730377,1753725060017,-151.0,0.00022739,7]
[375730379,1753725060027,-151.0,0.00022739,7]
[375730381,1753725060037,-151.0,0.00022739,7]
[375730383,1753725060047,-522.84,0.00022739,2]
[375730385,1753725060057,-151.0,0.00022739,7]
[375730387,1753725060066,-460.0,0.00022739,2]
[375730389,1753725060077,-677.75,0.00022739,2]
[375730391,1753725060087,-460.0,0.00022739,2]
[375730393,1753725060097,-460.0,0.00022739,2]
[375730395,1753725060108,-837.48,0.00022739,2]
[375730397,1753725060118,-483.3,0.00022739,2]
[375730399,1753725060127,-460.0,0.00022739,2]
[375730401,1753725060137,-473.59,0.00022739,2]
[375730403,1753725060147,-460.0,0.00022739,2]
[375730405,1753725060159,-1461.38,0.00022739,2]
[375730407,1753725060168,-168.264253,0.00022739,7]
[375730409,1753725060178,-460.0,0.00022739,2]
[375730411,1753725060187,-168.264253,0.00022739,7]
[375730413,1753725060196,-2012.98,0.00022739,2]
[375730415,1753725060206,-1053.042493,0.00022739,7]
[375730417,1753725060215,-1053.042493,0.00022739,7]
[375730419,1753725060226,-1815.07,0.00022739,2]
[375730421,1753725060236,-2092.57,0.00022739,2]
[375730423,1753725060246,-861.98,0.00022739,2]
[375730425,1753725060255,-460.0,0.00022739,2]
[375730427,1753725060264,-723.51,0.00022739,2]
[375730429,1753725060275,-593.1,0.00022739,2]
[375730431,1753725060286,-245.05000522,0.0002274,2]
[375730433,1753725060295,-151.0,0.0002274,2]
[375730435,1753725060305,-151.0,0.0002274,2]
[375730437,1753725060316,-163.35391302,0.0002274,2]
[375730439,1753725060326,-500.0,0.0002274,2]
[375730441,1753725060335,-764.0,0.0002274,2]
[375730443,1753725060345,-151.0,0.0002274,2]
[375730445,1753725060355,-151.0,0.0002274,2]
[375730447,1753725060370,-660.0,0.0002274,2]
[375730449,1753725060379,-168.577941,0.00022741,4]
[375730451,1753725060389,-333.62,0.0002277,2]
[375730452,1753725060398,-242.0,0.00022818,2]
[375730454,1753725060407,-168.577941,0.0002282,5]
[375730456,1753725060416,-151.0,0.0002282,7]
[375730458,1753725060425,-159.967418,0.0002282,7]
[375730460,1753725060434,-159.967418,0.0002282,7]
[375730462,1753725060444,-225.783866,0.0002282,7]
[375730464,1753725060453,-225.783866,0.0002282,7]
[375730466,1753725060462,-666.797697,0.00022821,2]
[375730468,1753725060471,-2200.0,0.00022884,2]
[375730470,1753725060481,-777.6,0.00022929,5]
[375730472,1753725060491,-168.577941,0.00022979,5]
[375730474,1753725060500,-1726.444646,0.0002298,5]
[375730476,1753725060509,-241.70436,0.0002298,7]
[375730478,1753725060518,-287.226127,0.0002298,7]
[375730480,1753725060527,-287.226127,0.0002298,7]
[375730482,1753725060537,-160.0,0.00023,3]
[375730484,1753725060546,-1395.88,0.00023,2]
[375730486,1753725060555,-44530.1,0.00023,2]
[375730488,1753725060565,-13442.97,0.00023,7]
[375730490,1753725060574,-643.566671,0.00023,7]
[375730492,1753725060583,-643.566671,0.00023,7]
[375730494,1753725060593,-503.81332379,0.00023,8]
[375730496,1753725060601,-1311.82,0.00023,7]
[375730498,1753725060613,-1000.0,0.00023,5]
[375730499,1753725060622,-500.0,0.00023,8]
[375730501,1753725060631,-3031.72,0.00023,7]
[375730503,1753725060641,-312.16666667,0.00023,7]
[375730505,1753725060649,-12634.73134317,0.00023,7]
[375730507,1753725060659,-160.0,0.00023,2]
[375730509,1753725060668,-288.1,0.00023,2]
[375730511,1753725060677,-332.25751443,0.00023,2]
[375730513,1753725060686,-168.577941,0.00023003,8]
[375730515,1753725060696,-3145.57,0.00023013,2]
[375730516,1753725060705,-460.0,0.00023013,2]
[375730517,1753725060715,-561.38,0.00023013,2]
[375730518,1753725060724,-460.0,0.00023013,2]
[375730519,1753725060734,-1942.47,0.00023013,2]
[375730520,1753725060744,-693.84,0.00023013,2]
[375730521,1753725060753,-460.0,0.00023013,2]
[375730522,1753725060762,-554.69,0.00023013,2]
[375730523,1753725060771,-460.0,0.00023013,2]
[375730524,1753725060781,-950.22,0.00023013,2]
[375730525,1753725060790,-7223.36,0.00023013,2]
[375730526,1753725060799,-1930.92,0.00023013,2]
[375730527,1753725060809,-2539.24,0.00023013,2]
[375730528,1753725060818,-536.55,0.00023013,2]
[375730529,1753725060827,-559.65,0.00023013,2]
[375730530,1753725060836,-460.0,0.00023013,2]
[375730531,1753725060845,-1363.78,0.00023013,2]
[375730532,1753725060855,-3257.5,0.00023013,2]
[375730533,1753725060980,-3044.26,0.00023013,2]
[375730534,1753725060991,-504.44,0.00023013,2]
[375730536,1753725061002,-1962.59,0.00023013,2]
[375730537,1753725061011,-914.27,0.00023013,2]
[375730539,1753725061020,-460.0,0.00023013,2]
[375730541,1753725061030,-460.0,0.00023013,2]
[375730543,1753725061040,-460.0,0.00023013,2]
[375730545,1753725061049,-460.09,0.00023013,2]
[375730547,1753725061058,-659.1,0.00023013,2]
[375730548,1753725061067,-675.7,0.00023013,2]
[375730550,1753725061077,-3770.7,0.00023013,2]
[375730552,1753725061087,-460.0,0.00023013,2]
[375730554,1753725061097,-522.84,0.00023013,2]
[375730556,1753725061108,-460.0,0.00023013,2]
[375730558,1753725061119,-677.75,0.00023013,2]
[375730560,1753725061128,-460.0,0.00023013,2]
[375730562,1753725061138,-460.0,0.00023013,2]
[375730563,1753725061147,-837.48,0.00023013,2]
[375730565,1753725061157,-483.3,0.00023013,2]
[375730567,1753725061166,-460.0,0.00023013,2]
[375730569,1753725061175,-473.59,0.00023013,2]
[375730571,1753725061185,-460.0,0.00023013,2]
[375730573,1753725061195,-1461.38,0.00023013,2]
[375730575,1753725061205,-460.0,0.00023013,2]
[375730577,1753725061214,-2012.98,0.00023013,2]
[375730579,1753725061224,-1815.07,0.00023013,2]
[375730581,1753725061233,-2092.57,0.00023013,2]
[375730583,1753725061243,-861.98,0.00023013,2]
[375730584,1753725061253,-460.0,0.00023013,2]
[375730586,1753725061262,-723.51,0.00023013,2]
[375730588,1753725061272,-593.1,0.00023013,2]
[375730590,1753725061282,-151.0,0.00023014,7]
[375730592,1753725061291,-197.0,0.00023014,7]
[375730594,1753725061301,-151.0,0.00023014,2]
[375730596,1753725061310,-151.0,0.00023014,2]
[375730598,1753725061320,-305.05852936,0.00023014,2]
[375730600,1753725061330,-764.0,0.00023014,2]
[375730602,1753725061340,-151.0,0.00023014,2]
[375730604,1753725061350,-198.0,0.00023014,2]
[375730606,1753725061362,-1000.0,0.0002302,5]
[375730607,1753725061372,-800.0,0.0002303,2]
[375730609,1753725061382,-1000.0,0.0002304,5]
[375730611,1753725061392,-5041.81830741,0.00023041,2]
[375730613,1753725061402,-168.577941,0.00023054,8]
[375730615,1753725061412,-1000.0,0.0002306,5]
[375730617,1753725061421,-3565.9030379,0.00023061,2]
[375730619,1753725061431,-1000.0,0.0002308,5]
[375730621,1753725061444,-811.43970814,0.00023088,2]
[375730623,1753725061454,-151.0,0.000231,7]
[375730625,1753725061463,-294.453064,0.000231,7]
[375730627,1753725061473,-151.0,0.000231,7]
[375730629,1753725061482,-151.0,0.000231,7]
[375730631,1753725061492,-1000.0,0.000231,5]
[375730632,1753725061502,-151.0,0.000231,7]
[375730634,1753725061512,-151.0,0.000231,7]
[375730636,1753725061521,-151.0,0.000231,7]
[375730638,1753725061531,-151.0,0.000231,7]
[375730640,1753725061541,-422.0,0.000231,2]
[375730642,1753725061552,-168.577941,0.00023106,8]
[375730644,1753725061562,-1000.0,0.0002312,5]
[375730646,1753725061571,-168.577941,0.00023138,5]
[375730648,1753725061581,-1000.0,0.0002314,5]
[375730650,1753725061592,-800.0,0.00023147,2]
[375730652,1753725061603,-168.577941,0.00023158,8]
[375730653,1753725061615,-1000.0,0.0002316,5]
[375730655,1753725061626,-242.0,0.00023175,2]
[375730657,1753725061635,-588.85668524,0.00023177,2]
[375730659,1753725061646,-1000.0,0.0002318,5]
[375730661,1753725061656,-2000.0,0.000232,2]
[375730663,1753725061666,-2000.0,0.000232,2]
[375730665,1753725061675,-151.0,0.000232,7]
[375730667,1753725061684,-151.0,0.000232,7]
[375730669,1753725061694,-151.0,0.000232,7]
[375730670,1753725061704,-151.0,0.000232,7]
[375730672,1753725061714,-151.0,0.000232,7]
[375730674,1753725061724,-1000.0,0.000232,5]
[375730676,1753725061733,-151.0,0.000232,7]
[375730678,1753725061743,-1000.0,0.000232,2]
[375730680,1753725061752,-632.15641,0.000232,7]
[375730681,1753725061762,-632.15641,0.000232,7]
[375730683,1753725061771,-151.0,0.000232,7]
[375730685,1753725061782,-151.0,0.000232,7]
[375730687,1753725061792,-168.577941,0.00023209,8]
[375730689,1753725061802,-777.6,0.0002322,5]
[375730691,1753725061812,-168.577941,0.00023225,3]
[375730693,1753725061822,-200.0,0.00023286,2]
[375730695,1753725061831,-151.0,0.00023287,7]
[375730697,1753725061841,-500.0,0.00023287,2]
[375730699,1753725061850,-500.0,0.00023287,2]
[375730700,1753725061860,-500.0,0.00023287,2]
[375730702,1753725061869,-500.0,0.00023287,2]
[375730704,1753725061878,-500.0,0.00023287,2]
[375730706,1753725061888,-500.0,0.00023287,2]
[375730708,1753725061898,-500.0,0.00023287,2]
[375730710,1753725061907,-500.0,0.00023287,2]
[375730712,1753725061917,-500.0,0.00023287,2]
[375730714,1753725061931,-500.0,0.00023287,2]
[375730716,1753725061940,-500.0,0.00023287,2]
[375730718,1753725061949,-500.0,0.00023287,2]
[375730719,1753725061958,-500.0,0.00023287,2]
[375730721,1753725061969,-500.0,0.00023287,2]
[375730723,1753725061978,-509.37948221,0.00023287,2]
[375730725,1753725061988,-3145.57,0.00023287,2]
[375730727,1753725061998,-460.0,0.00023287,2]
[375730729,1753725062010,-561.38,0.00023287,2]
[375730731,1753725062019,-460.0,0.00023287,2]
[375730733,1753725062029,-151.0,0.00023287,7]
[375730735,1753725062038,-151.0,0.00023287,7]
[375730737,1753725062048,-4340.31483932,0.00023287,2]
[375730739,1753725062057,-1942.47,0.00023287,2]
[375730741,1753725062066,-693.84,0.00023287,2]
[375730743,1753725062076,-460.0,0.00023287,2]
[375730745,1753725062085,-554.69,0.00023287,2]
[375730747,1753725062096,-460.0,0.00023287,2]
[375730749,1753725062106,-950.22,0.00023287,2]
[375730750,1753725062116,-7223.36,0.00023287,2]
[375730752,1753725062126,-1930.92,0.00023287,2]
[375730754,1753725062135,-2539.24,0.00023287,2]
[375730756,1753725062145,-536.55,0.00023287,2]
[375730758,1753725062155,-559.65,0.00023287,2]
[375730760,1753725062164,-460.0,0.00023287,2]
[375730762,1753725062173,-3257.5,0.00023287,2]
[375730764,1753725062183,-1363.78,0.00023287,2]
[375730766,1753725062192,-3044.26,0.00023287,2]
[375730767,1753725062201,-504.44,0.00023287,2]
[375730769,1753725062211,-1962.59,0.00023287,2]
[375730771,1753725062221,-914.27,0.00023287,2]
[375730773,1753725062231,-460.0,0.00023287,2]
[375730775,1753725062241,-460.0,0.00023287,2]
[375730777,1753725062252,-500.0,0.00023287,2]
[375730779,1753725062263,-460.0,0.00023287,2]
[375730781,1753725062273,-460.09,0.00023287,2]
[375730783,1753725062283,-659.1,0.00023287,2]
[375730785,1753725062293,-675.7,0.00023287,2]
[375730787,1753725062303,-3770.7,0.00023287,2]
[375730789,1753725062312,-460.0,0.00023287,2]
[375730791,1753725062322,-522.84,0.00023287,2]
[375730793,1753725062332,-460.0,0.00023287,2]
[375730795,1753725062342,-677.75,0.00023287,2]
[375730797,1753725062351,-460.0,0.00023287,2]
[375730799,1753725062361,-460.0,0.00023287,2]
[375730801,1753725062371,-837.48,0.00023287,2]
[375730803,1753725062381,-483.3,0.00023287,2]
[375730805,1753725062390,-460.0,0.00023287,2]
[375730807,1753725062400,-473.59,0.00023287,2]
[375730809,1753725062410,-460.0,0.00023287,2]
[375730811,1753725062420,-1461.38,0.00023287,2]
[375730813,1753725062431,-460.0,0.00023287,2]
[375730815,1753725062441,-2012.98,0.00023287,2]
[375730817,1753725062450,-1815.07,0.00023287,2]
[375730819,1753725062459,-2092.57,0.00023287,2]
[375730820,1753725062469,-861.98,0.00023287,2]
[375730822,1753725062478,-460.0,0.00023287,2]
[375730824,1753725062487,-723.51,0.00023287,2]
[375730826,1753725062497,-593.1,0.00023287,2]
[375730828,1753725062506,-151.0,0.00023288,2]
[375730830,1753725062516,-151.0,0.00023288,2]
[375730832,1753725062525,-764.0,0.00023288,2]
[375730834,1753725062534,-151.0,0.00023288,2]
[375730836,1753725062543,-760.0,0.00023288,2]
[375730838,1753725062553,-526.0,0.00023297,2]
[375730840,1753725062562,-168.577941,0.00023297,5]
[375730842,1753725062572,-3803.0,0.00023319,2]
[375730843,1753725062582,-347.20436139,0.00023399,2]
[375730845,1753725062591,-44315.46417561,0.000234,2]
[375730847,1753725062601,-151.0,0.000234,7]
[375730849,1753725062612,-151.0,0.000234,7]
[375730851,1753725062622,-151.0,0.000234,7]
[375730853,1753725062633,-151.0,0.000234,7]
[375730855,1753725062642,-151.0,0.000234,7]
[375730857,1753725062651,-151.0,0.000234,7]
[375730859,1753725062661,-151.0,0.000234,7]
[375730861,1753725062671,-151.0,0.000234,7]
[375730863,1753725062680,-151.0,0.000234,7]
[375730864,1753725062689,-151.0,0.000234,7]
[375730866,1753725062699,-151.0,0.000234,7]
[375730868,1753725062709,-151.0,0.000234,7]
[375730870,1753725062718,-151.0,0.000234,7]
[375730872,1753725062727,-337.697695,0.000234,7]
[375730874,1753725062737,-337.697695,0.000234,7]
[375730876,1753725062746,-151.704754,0.000234,7]
[375730878,1753725062756,-168.577941,0.00023401,7]
[375730880,1753725062765,-168.577941,0.00023456,5]
[375730882,1753725062774,-200.0,0.00023462,15]
[375730884,1753725062784,-200.0,0.00023462,15]
[375730886,1753725062794,-200.0,0.00023462,15]
[375730887,1753725062804,-200.0,0.00023462,15]
[375730889,1753725062814,-200.0,0.00023462,15]
[375730891,1753725062823,-200.0,0.00023462,15]
[375730893,1753725062832,-366.0,0.00023462,15]
[375730895,1753725062841,-168.577941,0.00023483,4]
[375730897,1753725062851,-827.0,0.00023497,2]
[375730899,1753725062862,-1800.0,0.000235,3]
[375730901,1753725062871,-151.0,0.000235,7]
[375730903,1753725062895,-208.587075,0.000235,7]
[375730905,1753725062905,-208.587075,0.000235,7]
[375730907,1753725062914,-151.0,0.000235,7]
[375730909,1753725062926,-455.795986,0.000235,7]
[375730911,1753725062935,-455.795986,0.000235,7]
[375730913,1753725062945,-225.339592,0.000235,7]
[375730915,1753725062955,-225.339592,0.000235,7]
[375730917,1753725062965,-777.6,0.0002351,5]
[375730919,1753725062975,-333.62,0.00023541,2]
[375730921,1753725062985,-151.0,0.00023561,7]
[375730923,1753725062994,-151.0,0.00023561,7]
[375730925,1753725063005,-152.415016,0.00023561,7]
[375730927,1753725063014,-205.16957,0.00023561,7]
[375730929,1753725063024,-205.16957,0.00023561,7]
[375730931,1753725063034,-3145.57,0.00023561,2]
[375730933,1753725063045,-460.0,0.00023561,2]
[375730935,1753725063055,-561.38,0.00023561,2]
[375730937,1753725063067,-460.0,0.00023561,2]
[375730939,1753725063078,-1942.47,0.00023561,2]
[375730941,1753725063089,-693.84,0.00023561,2]
[375730943,1753725063100,-460.0,0.00023561,2]
[375730945,1753725063112,-275.91522497,0.00023561,2]
[375730947,1753725063123,-554.69,0.00023561,2]
[375730949,1753725063133,-460.0,0.00023561,2]
[375730951,1753725063143,-950.22,0.00023561,2]
[375730953,1753725063153,-7223.36,0.00023561,2]
[375730955,1753725063163,-1930.92,0.00023561,2]
[375730957,1753725063172,-2539.24,0.00023561,2]
[375730959,1753725063183,-536.55,0.00023561,2]
[375730961,1753725063193,-559.65,0.00023561,2]
[375730963,1753725063202,-460.0,0.00023561,2]
[375730965,1753725063212,-3257.5,0.00023561,2]
[375730967,1753725063222,-1363.78,0.00023561,2]
[375730969,1753725063232,-3044.26,0.00023561,2]
[375730970,1753725063241,-504.44,0.00023561,2]
[375730972,1753725063250,-1962.59,0.00023561,2]
[375730974,1753725063260,-914.27,0.00023561,2]
[375730976,1753725063270,-460.0,0.00023561,2]
[375730978,1753725063280,-460.0,0.00023561,2]
[375730980,1753725063290,-460.0,0.00023561,2]
[375730982,1753725063300,-460.09,0.00023561,2]
[375730984,1753725063310,-659.1,0.00023561,2]
[375730986,1753725063320,-675.7,0.00023561,2]
[375730988,1753725063330,-3770.7,0.00023561,2]
[375730990,1753725063339,-460.0,0.00023561,2]
[375730992,1753725063349,-522.84,0.00023561,2]
[375730994,1753725063360,-460.0,0.00023561,2]
[375730996,1753725063370,-677.75,0.00023561,2]
[375730998,1753725063380,-460.0,0.00023561,2]
[375731000,1753725063389,-460.0,0.00023561,2]
[375731002,1753725063398,-837.48,0.00023561,2]
[375731004,1753725063408,-483.3,0.00023561,2]
[375731006,1753725063417,-332.19362281,0.00023561,2]
[375731008,1753725063427,-473.59,0.00023561,2]
[375731010,1753725063437,-460.0,0.00023561,2]
[375731021,1753725063553,-1461.38,0.00023561,2]
[375731022,1753725063563,-460.0,0.00023561,2]
[375731023,1753725063572,-2012.98,0.00023561,2]
[375731024,1753725063581,-1815.07,0.00023561,2]
[375731025,1753725063590,-2092.57,0.00023561,2]
[375731026,1753725063600,-861.98,0.00023561,2]
[375731027,1753725063612,-460.0,0.00023561,2]
[375731028,1753725063622,-723.51,0.00023561,2]
[375731029,1753725063631,-593.1,0.00023561,2]
[375731030,1753725063640,-245.0,0.00023562,2]
[375731031,1753725063649,-151.0,0.00023562,2]
[375731033,1753725063659,-764.0,0.00023562,2]
[375731035,1753725063668,-245.0,0.00023562,2]
[375731037,1753725063678,-5041.81830741,0.00023588,2]
[375731039,1753725063687,-526.0,0.00023642,2]
[375731041,1753725063697,-288.1,0.0002366,2]
[375731043,1753725063706,-977.79,0.00023692,2]
[375731045,1753725063715,-168.577941,0.00023729,2]
[375731047,1753725063724,-993.5248125,0.00023753,3]
[375731049,1753725063734,-242.0,0.00023768,2]
[375731051,1753725063746,-977.79,0.00023792,5]
[375731053,1753725063755,-777.6,0.00023801,6]
[375731055,1753725063765,-151.0,0.00023835,7]
[375731057,1753725063775,-341.175063,0.00023835,7]
[375731059,1753725063785,-341.175069,0.00023835,7]
[375731061,1753725063795,-460.0,0.00023835,2]
[375731063,1753725063804,-561.38,0.00023835,2]
[375731065,1753725063813,-460.0,0.00023835,2]
[375731067,1753725063822,-1942.47,0.00023835,2]
[375731069,1753725063832,-693.84,0.00023835,2]
[375731071,1753725063841,-460.0,0.00023835,2]
[375731073,1753725063850,-151.0,0.00023835,7]
[375731075,1753725063861,-554.69,0.00023835,2]
[375731077,1753725063871,-428.85121217,0.00023835,2]
[375731079,1753725063882,-950.22,0.00023835,2]
[375731081,1753725063891,-159.967418,0.00023835,7]
[375731083,1753725063901,-159.967418,0.00023835,7]
[375731085,1753725063911,-7223.36,0.00023835,2]
[375731087,1753725063923,-225.783866,0.00023835,7]
[375731089,1753725063933,-225.783866,0.00023835,7]
[375731091,1753725063944,-1930.92,0.00023835,2]
[375731093,1753725063953,-2539.24,0.00023835,2]
[375731095,1753725063962,-536.55,0.00023835,2]
[375731097,1753725063973,-287.226127,0.00023835,7]
[375731099,1753725063982,-559.65,0.00023835,2]
[375731101,1753725063991,-460.0,0.00023835,2]
[375731103,1753725064002,-287.226127,0.00023835,7]
[375731105,1753725064012,-3257.5,0.00023835,2]
[375731107,1753725064023,-1363.78,0.00023835,2]
[375731109,1753725064033,-3044.26,0.00023835,2]
[375731111,1753725064043,-504.44,0.00023835,2]
[375731113,1753725064052,-1962.59,0.00023835,2]
[375731115,1753725064062,-914.27,0.00023835,2]
[375731117,1753725064072,-460.0,0.00023835,2]
[375731119,1753725064083,-460.0,0.00023835,2]
[375731121,1753725064092,-172.00771924,0.00023835,2]
[375731123,1753725064103,-659.1,0.00023835,2]
[375731125,1753725064113,-460.09,0.00023835,2]
[375731127,1753725064124,-675.7,0.00023835,2]
[375731129,1753725064136,-3770.7,0.00023835,2]
[375731131,1753725064146,-460.0,0.00023835,2]
[375731133,1753725064155,-151.0,0.00023835,7]
[375731135,1753725064165,-151.0,0.00023835,7]
[375731137,1753725064174,-216.093752,0.00023835,7]
[375731140,1753725064184,-151.0,0.00023835,7]
[375731142,1753725064194,-522.84,0.00023835,2]
[375731144,1753725064205,-460.0,0.00023835,2]
[375731146,1753725064216,-677.75,0.00023835,2]
[375731148,1753725064226,-460.0,0.00023835,2]
[375731150,1753725064236,-460.0,0.00023835,2]
[375731152,1753725064246,-837.48,0.00023835,2]
[375731154,1753725064255,-483.3,0.00023835,2]
[375731156,1753725064265,-473.59,0.00023835,2]
[375731158,1753725064275,-460.0,0.00023835,2]
[375731160,1753725064284,-1461.38,0.00023835,2]
[375731162,1753725064295,-168.264253,0.00023835,7]
[375731164,1753725064305,-232.15,0.00023835,2]
[375731166,1753725064315,-168.264253,0.00023835,7]
[375731168,1753725064325,-2012.98,0.00023835,2]
[375731170,1753725064335,-1053.042493,0.00023835,7]
[375731172,1753725064345,-1053.042493,0.00023835,7]
[375731174,1753725064356,-1815.07,0.00023835,2]
[375731176,1753725064368,-2092.57,0.00023835,2]
[375731178,1753725064379,-861.98,0.00023835,2]
[375731180,1753725064389,-460.0,0.00023835,2]
[375731182,1753725064401,-723.51,0.00023835,2]
[375731184,1753725064411,-593.1,0.00023835,2]
[375731186,1753725064420,-188.0,0.00023836,2]
[375731188,1753725064430,-764.0,0.00023836,2]
[375731190,1753725064440,-860.0,0.00023836,2]
[375731192,1753725064449,-977.79,0.00023892,5]
[375731195,1753725064459,-207.0,0.000239,9]
[375731197,1753725064469,-242.0,0.00023903,2]
[375731199,1753725064479,-977.79,0.00023992,7]
[375731200,1753725064489,-3264.85487537,0.00024,2]
[375731202,1753725064499,-4338.21355073,0.00024,3]
[375731204,1753725064508,-454.50895927,0.00024,2]
[375731206,1753725064518,-160.16142507,0.00024,2]
[375731208,1753725064528,-160.0,0.00024,7]
[375731210,1753725064539,-4818.90972063,0.00024,7]
[375731212,1753725064549,-160.0,0.00024,7]
[375731214,1753725064559,-160.0,0.00024,7]
[375731216,1753725064569,-160.0,0.00024,7]
[375731219,1753725064578,-160.0,0.00024,7]
[375731220,1753725064588,-419.33856728,0.00024,2]
[375731222,1753725064598,-44530.1,0.00024,2]
[375731224,1753725064607,-13442.97,0.00024,7]
[375731226,1753725064618,-1311.82,0.00024,7]
[375731228,1753725064628,-3031.72,0.00024,7]
[375731230,1753725064637,-160.0,0.00024,7]
[375731232,1753725064647,-526.58819812,0.00024,3]
[375731234,1753725064656,-526.58819812,0.00024,7]
[375731236,1753725064666,-312.16666667,0.00024,3]
[375731238,1753725064675,-214.87999826,0.00024,3]
[375731240,1753725064685,-526.58819812,0.00024,7]
[375731242,1753725064695,-312.16666667,0.00024,7]
[375731244,1753725064705,-840.90880427,0.00024,7]
[375731246,1753725064717,-216.06083566,0.00024,7]
[375731248,1753725064727,-160.0,0.00024,7]
[375731250,1753725064737,-231.34820253,0.00024,7]
[375731252,1753725064747,-643.566671,0.00024044,7]
[375731254,1753725064757,-643.566671,0.00024044,7]
[375731257,1753725064768,-600.0,0.00024054,2]
[375731258,1753725064777,-526.0,0.0002408,2]
[375731260,1753725064787,-500.0,0.00024088,2]
[375731262,1753725064797,-600.0,0.00024091,2]
[375731265,1753725064808,-977.79,0.00024092,5]
[375731267,1753725064818,-600.0,0.00024094,2]
[375731268,1753725064828,-500.0,0.00024108,2]
[375731271,1753725064838,-405.616168,0.00024109,7]
[375731273,1753725064849,-405.616168,0.00024109,7]
[375731275,1753725064861,-395.660519,0.00024109,7]
[375731276,1753725064871,-395.660519,0.00024109,7]
[375731279,1753725064902,-460.0,0.00024109,2]
[375731281,1753725064912,-561.38,0.00024109,2]
[375731283,1753725064922,-344.23918415,0.00024109,2]
[375731285,1753725064934,-1942.47,0.00024109,2]
[375731286,1753725064945,-693.84,0.00024109,2]
[375731289,1753725064954,-460.0,0.00024109,2]
[375731290,1753725064966,-554.69,0.00024109,2]
[375731293,1753725064978,-950.22,0.00024109,2]
[375731294,1753725064988,-7223.36,0.00024109,2]
[375731296,1753725064997,-1930.92,0.00024109,2]